fUSD/lending_fUSD_20260327
["ID","MTS","AMOUNT","RATE_DAILY","PERIOD"]
[418952237,1774632641960,-333.33475097,0.00016,2]
[418952266,1774632643199,-30527.56755841,0.00016,2]
[418952267,1774632643215,-984.49388968,0.00016,2]
[418952271,1774632645384,-2633.96,0.00016,2]
[418952272,1774632645758,-46249.356553,0.00016,2]
[418952273,1774632648987,-129302.96688479,0.00016,2]
[418952274,1774632649041,-800.135,0.00016,2]
[418952275,1774632649152,-12498.75826668,0.00016,2]
[418952301,1774633279608,-1095.34,0.00011507,2]
[418952302,1774633279630,-274.89,0.00012387,2]
[418952303,1774633279652,-2100.0,0.00012652,2]
[418952304,1774633279675,-2140.0,0.00012708,2]
[418952305,1774633279696,-1200.0,0.00012876,2]
[418952306,1774633279718,-3640.0,0.00012877,2]
[418952307,1774633279741,-2713.23,0.00012984,2]
[418952308,1774633279765,-2100.0,0.00013005,2]
[418952309,1774633279787,-1880.0,0.00013024,2]
[418952310,1774633279808,-1850.0,0.00013036,2]
[418952311,1774633279829,-151.0,0.00013082,2]
[418952312,1774633279851,-503.0,0.00013111,2]
[418952313,1774633279874,-2331.23,0.00013191,2]
[418952314,1774633279895,-150.0,0.000132,2]
[418952315,1774633279916,-1700.0,0.00013216,2]
[418952316,1774633279938,-2270.37,0.00013238,2]
[418952317,1774633279960,-1860.54,0.00013295,2]
[418952318,1774633279982,-438.97,0.0001332,2]
[418952319,1774633280003,-2007.28,0.00013405,2]
[418952320,1774633280026,-569.48,0.00013445,2]
[418952321,1774633280048,-3198.88,0.00013483,2]
[418952322,1774633280070,-2220.0,0.00013585,2]
[418952323,1774633280092,-4480.0,0.00013631,2]
[418952324,1774633280115,-2600.0,0.00013697,2]
[418952325,1774633280136,-2430.0,0.00013714,2]
[418952326,1774633280157,-150.0,0.00013761,2]
[418952327,1774633280179,-3303.99,0.00013761,2]
[418952328,1774633280200,-2641.8,0.00013803,2]
[418952338,1774633629111,-503.0,0.00013111,2]
[418952339,1774633629132,-2238.54032763,0.000136,2]
[418952341,1774633752084,-220.99,0.00011143,2]
[418952342,1774633752106,-4343.9,0.00012252,2]
[418952343,1774633752126,-610.0,0.00012288,2]
[418952344,1774633752146,-38773.0,0.000125,2]
[418952345,1774633752166,-4220.0,0.00012531,2]
[418952346,1774633752186,-3200.0,0.0001256,2]
[418952347,1774633752206,-3500.0,0.00012656,2]
[418952348,1774633752226,-3690.0,0.00012862,2]
[418952349,1774633752248,-1889.41,0.00012879,2]
[418952350,1774633752269,-2754.88,0.00012945,2]
[418952351,1774633752290,-5533.0,0.000131,3]
[418952352,1774633752311,-506.0,0.00013111,2]
[418952353,1774633752333,-239.41,0.00013257,2]
[418952354,1774633752355,-3650.01,0.00013281,2]
[418952355,1774633752375,-3018.29,0.00013361,2]
[418952356,1774633752396,-1908.91335979,0.0001337,2]
[418952357,1774633770097,-2131.08664021,0.0001337,2]
[418952358,1774633770118,-3484.74,0.00013554,2]
[418952359,1774633770139,-2414.06927141,0.00013654,2]
[418952363,1774633831662,-300.0,0.00013111,2]
[418952364,1774633831673,-204.0,0.00013111,2]
[418952365,1774633831682,-1696.0,0.000134,5]
[418952366,1774633831694,-3837.0,0.000134,5]
[418952367,1774633831704,-2143.21072859,0.00013654,2]
[418952368,1774633831714,-168.0,0.00013654,3]
[418952369,1774633831724,-177.0,0.00013654,3]
[418952370,1774633831734,-600.0,0.00013721,2]
[418952371,1774633831743,-600.0,0.0001377,2]
[418952372,1774633831752,-600.0,0.0001377,2]
[418952373,1774633831762,-180.40183853,0.0001377,2]
[418952374,1774633831771,-3070.0,0.00013788,2]
[418952375,1774633831780,-58.2,0.00013803,2]
[418952376,1774633831789,-2761.37456361,0.00013843,2]
[418952377,1774633831802,-903.30543639,0.00013843,2]
[418952378,1774633831811,-2990.0,0.00013982,2]
[418952379,1774633831820,-150.0,0.00014,2]
[418952380,1774633831830,-200.0,0.00014095,2]
[418952381,1774633831840,-191.45676766,0.00014099,2]
[418952382,1774633831851,-2808.54323234,0.00014099,2]
[418952383,1774633831860,-373.84411536,0.00014131,2]
[418952384,1774633831892,-103.94004682,0.00014131,2]
[418952385,1774633831903,-1000.0,0.00014131,2]
[418952386,1774633831914,-369.24583782,0.00014131,2]
[418952387,1774633831923,-500.0,0.00014137,2]
[418952388,1774633831933,-1345.93,0.00014181,2]
[418952389,1774633831942,-1069.82416218,0.00014374,2]
[418952390,1774633831953,-624.35787928,0.00014374,2]
[418952391,1774633831963,-397.27345736,0.00014374,2]
[418952392,1774633831975,-1008.54450118,0.00014374,2]
[418952393,1774633831984,-1311.27072347,0.00014429,2]
[418952394,1774633831997,-1188.72927653,0.00014429,2]
[418952395,1774633832006,-120.72834165,0.00014693,2]
[418952404,1774633837873,-974.1897,0.00014693,2]
[418952405,1774633837887,-2222.69195835,0.00014693,2]
[418952406,1774633837896,-600.0,0.00015019,2]
[418952407,1774633837906,-987.22107327,0.00015019,2]
[418952408,1774633837916,-276.99718525,0.00015019,2]
[418952409,1774633837925,-500.0,0.00015068,2]
[418952410,1774633837934,-494.63,0.00015168,2]
[418952411,1774633837943,-500.0,0.00015178,2]
[418952412,1774633837953,-201.93286099,0.0001519,2]
[418952413,1774633837962,-77.52692214,0.0001519,2]
[418952414,1774633837974,-422.47307786,0.0001519,2]
[418952415,1774633837983,-4.14538872,0.0001519,2]
[418952416,1774633837994,-495.85461128,0.0001519,2]
[418952417,1774633838003,-500.0,0.0001519,2]
[418952418,1774633838013,-438.66748805,0.0001519,2]
[418952419,1774633838024,-61.33251195,0.0001519,2]
[418952420,1774633838033,-500.0,0.0001519,2]
[418952421,1774633838043,-500.0,0.0001519,2]
[418952422,1774633838052,-500.0,0.0001519,2]
[418952423,1774633838061,-500.0,0.0001519,2]
[418952424,1774633838070,-500.0,0.0001519,2]
[418952425,1774633838079,-500.0,0.0001519,2]
[418952426,1774633838088,-500.0,0.0001519,2]
[418952427,1774633838097,-174.61919141,0.0001519,2]
[418952428,1774633838107,-588.69733608,0.0001519,2]
[418952429,1774633838118,-154.81036541,0.0001519,2]
[418952430,1774633838127,-494.63,0.00015442,2]
[418952431,1774633838136,-500.0,0.00015493,2]
[418952432,1774633838145,-1.92280289,0.00015716,2]
[418952433,1774633838157,-492.70719711,0.00015716,2]
[418952434,1774633838166,-209.40437684,0.00015738,2]
[418952435,1774633838175,-181.08010149,0.00015738,2]
[418952436,1774633838184,-771.01748645,0.00015738,2]
[418952437,1774633838193,-177.2746,0.00015753,2]
[418952438,1774633838203,-318.0,0.00015781,2]
[418952439,1774633838211,-164.78452,0.0001584,2]
[418952440,1774633838220,-164.78451,0.0001584,2]
[418952441,1774633838229,-164.78452,0.0001584,2]
[418952443,1774633838238,-21.27217122,0.00015899,2]
[418952462,1774633842091,-333.33272031,0.00015899,2]
[418952466,1774633842603,-145.39510847,0.00015899,2]
[418952467,1774633842612,-334.49111638,0.00015899,2]
[418952468,1774633842621,-334.49111635,0.00015899,2]
[418952470,1774633842630,-334.49111635,0.00015899,2]
[418952471,1774633842639,-334.49111635,0.00015899,2]
[418952472,1774633842649,-334.49111635,0.00015899,2]
[418952473,1774633842657,-334.49111635,0.000159,2]
[418952474,1774633842666,-334.49111635,0.000159,2]
[418952475,1774633842676,-334.49111635,0.000159,2]
[418952477,1774633842685,-334.49111635,0.000159,2]
[418952479,1774633842693,-10000.0,0.000159,2]
[418952481,1774633842702,-1149.11682306,0.000159,2]
[418952483,1774633842712,-2073.48799415,0.000159,2]
[418952485,1774633842722,-4677.25632602,0.000159,2]
[418952486,1774633842732,-227.02109222,0.000159,2]
[418952487,1774633842740,-334.49111635,0.000159,2]
[418952488,1774633842751,-591.77442886,0.00015973,2]
[418952489,1774633842760,-455.74374742,0.00015973,2]
[418952490,1774633842769,-494.63,0.0001599,2]
[418952491,1774633842778,-666.0,0.00015999,2]
[418952492,1774633842787,-155.0,0.00015999,2]
[418952494,1774633842797,-173.335,0.00015999,2]
[418952496,1774633842806,-500.0,0.00015999,2]
[418952498,1774633842815,-351.69444224,0.00015999,2]
[418952500,1774633842825,-2417.0,0.00016,5]
[418952501,1774633842835,-1932.0,0.00016,5]
[418952502,1774633842844,-452655.23127392,0.00016,2]
[418952504,1774633842856,-276.99747719,0.00016,2]
[418952505,1774633843059,-30200.19348635,0.00016,2]
[418952506,1774633843323,-541.66351944,0.00016,2]
[418952511,1774633846052,-59112.49236374,0.00016,2]
[418952516,1774633846523,-544.44226142,0.00016,2]
[418952517,1774633846575,-978.52338359,0.00016,2]
[418952521,1774634718245,400.0,0.000161,30]
[418952522,1774634738124,-269.94772911,0.00013111,2]
[418952524,1774634845094,-261.05227089,0.00013111,2]
[418952525,1774634845116,-506.0,0.00013111,2]
[418952526,1774634845138,-313.0,0.00013111,2]
[418952527,1774634845159,-2000.0,0.00014168,2]
[418952528,1774634845180,-276.80577735,0.00014422,2]
[418952529,1774634845202,-666.0,0.00014599,2]
[418952530,1774634845223,-150.0,0.00014599,2]
[418952531,1774634845244,-6194.21365185,0.000146,2]
[418952533,1774634950134,-495.60091623,0.00013111,2]
[418952534,1774634953078,-57.39908377,0.00013111,2]
[418952535,1774634978258,309.61507023,0.000125,2]
[418952536,1774635004580,6743.62978813,9.5e-05,3]
[418952552,1774635031831,-2305.43483358,9.5e-05,3]
[418952553,1774635031842,-2445.95087844,9.5e-05,3]
[418952554,1774635032040,-11104.32001222,9.5e-05,3]
[418952555,1774635032051,-15436.47827363,0.000146,2]
[418952566,1774635037983,-318.01833077,0.000146,2]
[418952567,1774635038250,-1750.5071367,0.000146,2]
[418952568,1774635038262,-27215.83074948,0.000146,2]
[418952569,1774635038272,-488.80444329,0.00014719,2]
[418952570,1774635038283,-200.0,0.00014869,2]
[418952571,1774635038292,-235.43,0.00014872,2]
[418952572,1774635038301,-156.86,0.00014973,2]
[418952573,1774635038310,-380.9,0.00015135,2]
[418952574,1774635038320,-500.0,0.00015177,3]
[418952575,1774635038329,-201.93286099,0.00015199,2]
[418952576,1774635038339,-174.61919141,0.00015199,2]
[418952577,1774635038348,-743.50770149,0.00015199,2]
[418952578,1774635038357,-166.66,0.00015261,2]
[418952579,1774635038367,-502.0,0.00015425,2]
[418952580,1774635038376,-150.0,0.00015452,2]
[418952581,1774635038385,-1241.2,0.00015507,2]
[418952582,1774635038395,-281.28,0.00015538,2]
[418952583,1774635038404,-150.0,0.00015581,2]
[418952585,1774635038414,-3456.0,0.000156,2]
[418952587,1774635038423,-368.55,0.00015657,2]
[418952589,1774635038433,-2000.0,0.000157,2]
[418952591,1774635038442,-209.40437684,0.00015747,2]
[418952593,1774635038451,-181.08010149,0.00015747,2]
[418952594,1774635038460,-771.01748645,0.00015747,2]
[418952595,1774635038469,-1052.27,0.0001589,2]
[418952596,1774635038478,-380.9,0.00015892,2]
[418952597,1774635038487,-1241.2,0.00015895,2]
[418952598,1774635038498,-10000.0,0.000159,2]
[418952599,1774635038507,-984.9572769,0.000159,2]
[418952600,1774635038516,-2000.0,0.00015939,2]
[418952601,1774635038524,-4527.4103003,0.00015992,2]
[418952602,1774635038533,-1264.8721743,0.00015993,2]
[418952603,1774635038543,-341.6144305,0.00015993,2]
[418952604,1774635038552,-18596.2179364,0.00015993,2]
[418952605,1774635038560,-463.96883349,0.00015999,2]
[418952606,1774635038570,-500.0,0.00015999,2]
[418952607,1774635038580,-500.0,0.00015999,2]
[418952608,1774635038590,-465.4395642,0.00015999,2]
[418952609,1774635038599,-1053.69585327,0.00015999,5]
[418952610,1774635038610,-1053.69585328,0.00015999,5]
[418952611,1774635038620,-500.0,0.00015999,2]
[418952612,1774635038630,-315.09075326,0.00015999,2]
[418952613,1774635038640,-222.508208,0.00015999,2]
[418952614,1774635038649,-608.04911984,0.00015999,2]
[418952615,1774635038658,-500.0,0.00015999,2]
[418952616,1774635038668,-249.81125403,0.00015999,2]
[418952617,1774635038677,-500.0,0.00015999,2]
[418952618,1774635038687,-500.0,0.00015999,2]
[418952619,1774635038696,-583.29177682,0.00015999,2]
[418952620,1774635038705,-1748.0,0.00016,5]
[418952621,1774635038715,-1404.0,0.00016,5]
[418952622,1774635038724,-18258.0298218,0.00016,2]
[418952623,1774635038736,-2057.07729307,0.00016,2]
[418952624,1774635040178,-305.11934148,0.00016,2]
[418952625,1774635040568,-347.795,0.00016,2]
[418952626,1774635040579,-338.004,0.00016,2]
[418952627,1774635040600,-1154913.18283979,0.00016,2]
[418952632,1774635043119,-988.9712084,0.00016,2]
[418952633,1774635043542,-2186.1837647,0.00016,2]
[418952634,1774635043649,-2362.12788691,0.00016,2]
[418952635,1774635043661,-521.25936225,0.00016,2]
[418952636,1774635043672,-1139.33803329,0.00016,2]
[418952638,1774635045851,-297.70261111,0.00016,2]
[418952639,1774635046272,-2331.784414,0.00016,2]
[418952640,1774635046284,-2128.68306836,0.00016,2]
[418952641,1774635046326,-41503.89060164,0.00016,2]
[418952642,1774635046381,-854.40739932,0.00016,2]
[418952643,1774635046435,-1977.09999995,0.00016,2]
[418952644,1774635046490,-350.88499915,0.00016,2]
[418952645,1774635046500,-34626.88184264,0.00016,2]
[418952652,1774635956095,-169.65783214,0.00012295,2]
[418952653,1774636053082,-555.74723294,0.00011561,2]
[418952654,1774636159086,-544.25276706,0.00011561,2]
[418952655,1774636159108,-743.12216786,0.00012295,2]
[418952656,1774636159129,-2500.0,0.00012632,2]
[418952657,1774636159150,-519.0,0.00013111,2]
[418952658,1774636159171,-166.66,0.0001346,2]
[418952659,1774636159192,-555.0,0.000136,2]
[418952660,1774636159213,-3682.22552372,0.000136,7]
[418952661,1774636159240,-1509.77447628,0.000136,7]
[418952662,1774636159262,-900.0,0.000137,2]
[418952663,1774636159283,-166.66,0.00013743,2]
[418952664,1774636159305,-166.66,0.00014026,2]
[418952665,1774636159327,-150.0,0.000141,2]
[418952666,1774636159349,-576.39,0.00014168,2]
[418952667,1774636159371,-166.66,0.0001431,2]
[418952670,1774636231984,-250.0,0.00014417,2]
[418952671,1774636231995,-166.66,0.00014593,2]
[418952672,1774636232003,-499.60134101,0.00014813,2]
[418952673,1774636232153,-423.90865899,0.00014813,2]
[418952674,1774636232163,-166.66,0.00014877,2]
[418952675,1774636232172,-168.07,0.00014937,2]
[418952676,1774636232181,-211.16683668,0.000151,2]
[418952677,1774636232192,-88.83316332,0.000151,2]
[418952678,1774636232200,-1229.24,0.00015155,2]
[418952680,1774636232214,-184.67678649,0.00015199,2]
[418952681,1774636232223,-174.61919141,0.00015199,2]
[418952682,1774636232232,-184.13,0.00015384,2]
[418952683,1774636232242,-150.0,0.000157,2]
[418952684,1774636232251,-181.08010149,0.00015747,2]
[418952685,1774636232260,-168.07,0.00015767,2]
[418952686,1774636232269,-952.0,0.00015781,2]
[418952687,1774636232279,-170.83062854,0.0001589,2]
[418952690,1774636238137,-572.67707295,0.0001589,2]
[418952691,1774636238147,-146.49292705,0.00015899,2]
[418952692,1774636238365,-86.50707295,0.00015899,2]
[418952693,1774636238374,-857.08453608,0.000159,2]
[418952694,1774636238386,-1951.76219332,0.000159,2]
[418952695,1774636238397,-1215.75648086,0.000159,2]
[418952696,1774636238409,-2058.91457868,0.000159,2]
[418952697,1774636238420,-915.68180285,0.000159,2]
[418952709,1774636240373,-3000.80040821,0.000159,2]
[418952710,1774636240383,-73313.9842,0.000159,2]
[418952711,1774636240393,-908.7061091,0.000159,2]
[418952712,1774636240404,-657.52,0.000159,2]
[418952713,1774636240415,-2500.0,0.000159,2]
[418952714,1774636240426,-5000.0,0.000159,2]
[418952715,1774636240436,-4009.8934,0.000159,2]
[418952716,1774636240447,-576.39,0.00015939,2]
[418952717,1774636240458,-595.02,0.0001599,2]
[418952718,1774636240468,-595.02,0.0001599,2]
[418952719,1774636240478,-595.02,0.0001599,2]
[418952720,1774636240488,-595.02,0.0001599,2]
[418952721,1774636240498,-595.02,0.0001599,2]
[418952722,1774636240507,-1748.5325882,0.00015998,2]
[418952723,1774636240516,-947.217675,0.00015998,2]
[418952724,1774636240526,-953.3145097,0.00015998,2]
[418952725,1774636240536,-500.0,0.00015999,2]
[418952726,1774636240545,-500.0,0.00015999,2]
[418952727,1774636240555,-500.0,0.00015999,2]
[418952728,1774636240564,-155.0,0.00015999,2]
[418952729,1774636240574,-500.0,0.00015999,2]
[418952730,1774636240583,-608.30424377,0.00015999,2]
[418952731,1774636240593,-155.7557456,0.00015999,2]
[418952732,1774636240602,-500.0,0.00015999,2]
[418952733,1774636240612,-275.63438389,0.00015999,2]
[418952734,1774636240621,-174.86787782,0.00015999,2]
[418952735,1774636240630,-505.71522064,0.00015999,2]
[418952736,1774636240640,-924.0,0.00016,5]
[418952737,1774636240650,-739.0,0.00016,5]
[418952738,1774636240659,-1052283.44647786,0.00016,2]
[418952739,1774636240837,-461.5282217,0.00016,2]
[418952740,1774636240857,-3936562.00831196,0.00016,2]
[418952741,1774636240869,-892.43429608,0.00016,2]
[418952742,1774636240881,-485.38760404,0.00016,2]
[418952758,1774636243693,-824.0,0.00016,2]
[418952768,1774636246033,-881.45672485,0.00016,2]
[418952769,1774636246336,-3074.13784426,0.00016,2]
[418952770,1774636246348,-1037.32092717,0.00016,2]
[418952771,1774636246398,-4132.82507198,0.00016,2]
[418952772,1774636246513,-36035.14752852,0.00016,2]
[418952773,1774636246525,-445.5,0.00016,2]
[418952796,1774637150126,-519.0,0.00013111,2]
[418952797,1774637150148,-412.57137377,0.000135,2]
[418952798,1774637150175,-75.36372623,0.000135,2]
[418952799,1774637150198,-88.96869986,0.000136,2]
[418952800,1774637348260,-2210.16068,0.000136,7]
[418952801,1774637368079,-6574.83932,0.000136,7]
[418952802,1774637425360,519.0,0.00013111,2]
[418952803,1774637432177,-150.0,0.00014351,2]
[418952804,1774637432187,-228.54,0.00014351,2]
[418952805,1774637432196,-521.46,0.00014351,2]
[418952806,1774637432230,-1478.54,0.00014351,2]
[418952807,1774637432240,-200.0,0.00014351,2]
[418952808,1774637432249,-150.0,0.00014899,2]
[418952809,1774637432258,-1852.42,0.00014928,2]
[418952810,1774637432267,-200.0,0.00015043,2]
[418952811,1774637432276,-228.54,0.00015068,2]
[418952812,1774637432285,-174.61919141,0.00015475,2]
[418952813,1774637432294,-519.54399155,0.00015484,2]
[418952814,1774637432336,-970.44892758,0.00015484,2]
[418952818,1774637438275,-378.27208087,0.00015484,2]
[418952819,1774637438284,-177.524,0.00015484,2]
[418952820,1774637438293,-744.72,0.00015507,2]
[418952821,1774637438304,-153.27466148,0.000157,2]
[418952822,1774637438313,-2033.30925765,0.000157,2]
[418952823,1774637438348,-1337.92564235,0.000157,2]
[418952824,1774637438357,-2500.0,0.000157,2]
[418952825,1774637438366,-250.56562374,0.000157,2]
[418952826,1774637438375,-248.19557107,0.000157,2]
[418952827,1774637438384,-4661.0941,0.000157,2]
[418952828,1774637438394,-281.28,0.00015721,2]
[418952829,1774637438403,-248.19557103,0.00015722,2]
[418952830,1774637438412,-248.19557103,0.00015744,2]
[418952831,1774637438423,-248.19557103,0.00015767,2]
[418952832,1774637438433,-500.0,0.00015773,2]
[418952833,1774637438442,-228.54,0.00015786,2]
[418952834,1774637438451,-248.19557103,0.00015789,2]
[418952835,1774637438460,-743.50770149,0.00015791,2]
[418952836,1774637438470,-40063.69745975,0.000158,2]
[418952837,1774637438482,-301.76454383,0.000158,2]
[418952838,1774637439467,615.27326843,0.00013061,2]
[418952839,1774637442768,-84.29673157,0.00013061,2]
[418952840,1774637442779,-307.25736853,0.000158,2]
[418952853,1774637443405,-33079.00252789,0.000158,2]
[418952854,1774637443415,-248.19557103,0.00015811,2]
[418952855,1774637443426,-248.19557103,0.00015833,2]
[418952856,1774637443435,-248.19557103,0.00015856,2]
[418952857,1774637443445,-248.19557103,0.00015878,2]
[418952858,1774637443455,-744.72,0.00015895,2]
[418952859,1774637443464,-1000.0,0.000159,2]
[418952860,1774637443473,-4009.8934,0.000159,2]
[418952861,1774637443482,-908.7061091,0.000159,2]
[418952862,1774637443492,-5000.0,0.000159,2]
[418952864,1774637443502,-296.9126203,0.000159,2]
[418952865,1774637443511,-248.19557103,0.000159,2]
[418952866,1774637443522,-500.52239873,0.00015973,2]
[418952867,1774637443531,-500.0,0.00015973,2]
[418952868,1774637443541,-501.20618875,0.00015973,2]
[418952869,1774637443551,-500.0,0.00015973,2]
[418952870,1774637443560,-500.0,0.00015973,2]
[418952871,1774637443570,-500.0,0.00015973,2]
[418952872,1774637443579,-500.0,0.00015973,2]
[418952873,1774637443588,-500.0,0.00015973,2]
[418952874,1774637443598,-500.0,0.00015973,2]
[418952875,1774637443608,-500.80510622,0.00015973,2]
[418952876,1774637443618,-500.0,0.00015973,2]
[418952877,1774637443627,-500.0,0.00015973,2]
[418952878,1774637443637,-500.25354559,0.00015973,2]
[418952879,1774637443647,-626.24588334,0.00015973,2]
[418952880,1774637443656,-500.0,0.00015973,2]
[418952881,1774637443666,-500.0,0.00015973,2]
[418952882,1774637443675,-160.15377338,0.00015973,2]
[418952883,1774637443685,-500.74550538,0.00015973,2]
[418952884,1774637443694,-500.0,0.00015973,2]
[418952885,1774637443704,-500.0,0.00015973,2]
[418952886,1774637443714,-500.0,0.00015973,2]
[418952887,1774637443723,-500.0,0.00015973,2]
[418952888,1774637443734,-500.0,0.00015973,2]
[418952889,1774637443743,-500.0,0.00015973,2]
[418952890,1774637443752,-500.0,0.00015973,2]
[418952891,1774637443762,-500.0,0.00015973,2]
[418952892,1774637443772,-500.0,0.00015973,2]
[418952893,1774637443781,-611.41964849,0.00015973,2]
[418952894,1774637443791,-500.0,0.00015973,2]
[418952895,1774637443800,-264.39,0.00015973,2]
[418952896,1774637443810,-2695.7502632,0.00015998,2]
[418952897,1774637443819,-4957.7744649,0.00015998,2]
[418952898,1774637443828,-953.3145097,0.00015998,2]
[418952899,1774637443837,-500.0,0.00015999,2]
[418952900,1774637443847,-155.0,0.00015999,2]
[418952901,1774637443856,-500.0,0.00015999,2]
[418952902,1774637443865,-500.0,0.00015999,2]
[418952903,1774637443875,-174.86787782,0.00015999,2]
[418952904,1774637443884,-155.7557456,0.00015999,2]
[418952905,1774637443894,-500.0,0.00015999,2]
[418952906,1774637443903,-500.0,0.00015999,2]
[418952907,1774637443913,-608.30424377,0.00015999,2]
[418952908,1774637443922,-275.63438389,0.00015999,2]
[418952909,1774637443932,-505.71522064,0.00015999,2]
[418952910,1774637443941,-1124.0,0.00016,5]
[418952911,1774637443950,-888.0,0.00016,5]
[418952912,1774637443960,-693772.04484654,0.00016,2]
[418952913,1774637443969,-157.41,0.00016,2]
[418952914,1774637443979,-1520.61,0.00016,2]
[418952915,1774637443988,-2819.99,0.00016,2]
[418952916,1774637443998,-753.01,0.00016,2]
[418952917,1774637444007,-769.58,0.00016,2]
[418952918,1774637444017,-379180.46672141,0.00016,2]
[418952919,1774637444030,-2087.35561169,0.00016,2]
[418952920,1774637444123,-437.76433513,0.00016,2]
[418952921,1774637444146,-460.0,0.00016,2]
[418952923,1774637446708,-1554.23218057,0.00016,2]
[418952928,1774637918631,-760.65,0.00011611,2]
[418952929,1774637918657,-519.0,0.00013111,2]
[418952930,1774637918680,-5466.0,0.000136,2]
[418952931,1774637918704,-1000.0,0.00014253,2]
[418952932,1774637918729,-157.82,0.00014605,2]
[418952933,1774637918754,-461.12,0.00014753,2]
[418952934,1774637918782,-166.66,0.00014781,2]
[418952935,1774637918808,-1000.0,0.00015217,2]
[418952936,1774637918832,-400.0,0.000153,5]
[418952937,1774637918855,-523.92140392,0.00015397,2]
[418952938,1774637918880,-900.0,0.000154,5]
[418952939,1774637918904,-1300.0,0.000155,5]
[418952940,1774637918927,-532.76,0.00015522,2]
[418952941,1774637918950,-166.66,0.00015594,2]
[418952942,1774637918974,-1800.0,0.000156,5]
[418952943,1774637918997,-4009.8934,0.000156,2]
[418952944,1774637919022,-158.46809423,0.000156,2]
[418952945,1774637919046,-158.46809419,0.00015633,2]
[418952946,1774637919071,-158.46809419,0.00015667,2]
[418952947,1774637919093,-500.0,0.00015673,2]
[418952948,1774637919118,-310.34615657,0.00015673,2]
[418952949,1774637919140,-505.71522064,0.00015699,2]
[418952950,1774637919163,-1000.0,0.000157,2]
[418952951,1774637919189,-128044.04953626,0.000157,2]
[418952955,1774638338828,-513.0,0.00013111,2]
[418952956,1774638352146,-166.66,0.00014128,2]
[418952957,1774638352169,-166.66,0.00014425,2]
[418952958,1774638352191,-30.97275445,0.00014722,2]
[418952959,1774638356123,-135.68724555,0.00014722,2]
[418952960,1774638356145,-22.37115661,0.0001502,2]
[418952961,1774638476412,28.66351944,0.00013111,2]
[418952963,1774638568090,-484.33648056,0.00013111,2]
[418952964,1774638568113,-474.61643536,0.00013513,2]
[418952966,1774638604012,6556.58016154,9.5e-05,3]
[418952972,1774638631521,-377.74356464,0.00013513,2]
[418952973,1774638631530,-96.3855814,0.00014351,2]
[418952974,1774638631572,-71.6844186,0.00014351,2]
[418952975,1774638631581,-144.28884339,0.0001502,2]
[418952976,1774638631591,-160.38673801,0.00015056,2]
[418952983,1774638637461,-175.46461686,0.00015056,2]
[418952984,1774638637470,-200.0,0.000152,5]
[418952985,1774638637480,-400.0,0.000153,5]
[418952986,1774638637490,-166.66,0.00015317,2]
[418952987,1774638637499,-168.07,0.00015376,2]
[418952988,1774638637508,-700.0,0.000154,5]
[418952989,1774638637518,-900.0,0.000155,5]
[418952990,1774638637527,-776.90538314,0.000156,2]
[418952991,1774638637539,-223.09461686,0.000156,2]
[418952992,1774638637548,-158.46809419,0.000156,2]
[418952993,1774638637557,-441.26728895,0.000156,5]
[418952994,1774638637568,-695.9,0.000156,5]
[418952995,1774638637579,-62.83271105,0.000156,5]
[418952996,1774638637589,-248.1461,0.000156,2]
[418952997,1774638637598,-166.66,0.00015615,2]
[418952998,1774638637607,-158.46809419,0.0001565,2]
[418952999,1774638637616,-567.17570066,0.00015673,2]